[Event "Titled Tuesday Blitz September 21 2021"]
[White "Abdrlauf, Elham"]
[Black "Kubatko, Ivan"]
[WhiteFideId "1533533"]
[BlackFideId "24111473"]
[WhiteElo "2347"]
[BlackElo "2285"]
[Result "1-0"]
[Round "01"]
[TimeControl "180+1"]
[Date "2021.09.21"]
[WhiteClock "0:00:03"]
[BlackClock "0:00:01"]

1. e4 {[%clk 0:02:48]}  d5 {[%clk 0:02:59]} 2. exd5 {[%clk 0:02:48]}  Qxd5 {[%clk 0:03:00]} 3. Nf3 {[%clk 0:02:48]}  Nf6 {[%clk 0:03:00]} 4. Be2 {[%clk 0:02:49]}  Bg4 {[%clk 0:03:00]} 5. O-O {[%clk 0:02:49]}  Nc6 {[%clk 0:03:00]} 6. Nc3 {[%clk 0:02:50]}  Qa5 {[%clk 0:02:59]} 7. a3 {[%clk 0:02:47]}  e6 {[%clk 0:02:57]} 8. h3 {[%clk 0:02:43]}  Bh5 {[%clk 0:02:56]} 9. Rb1 {[%clk 0:02:36]}  O-O-O {[%clk 0:02:46]} 10. b4 {[%clk 0:02:35]}  Qf5 {[%clk 0:02:46]} 11. b5 {[%clk 0:02:34]}  Bxf3 {[%clk 0:02:37]} 12. Bxf3 {[%clk 0:02:33]}  Nd4 {[%clk 0:02:38]} 13. d3 {[%clk 0:02:28]}  Nxf3+ {[%clk 0:02:36]} 14. Qxf3 {[%clk 0:02:28]}  Qxf3 {[%clk 0:02:36]} 15. gxf3 {[%clk 0:02:29]}  Bc5 {[%clk 0:02:25]} 16. Ne4 {[%clk 0:02:27]}  Bd4 {[%clk 0:02:21]} 17. Be3 {[%clk 0:02:21]}  Nxe4 {[%clk 0:01:49]} 18. fxe4 {[%clk 0:02:20]}  f5 {[%clk 0:01:42]} 19. Rb4 {[%clk 0:02:14]}  Bxe3 {[%clk 0:01:35]} 20. fxe3 {[%clk 0:02:14]}  g6 {[%clk 0:01:36]} 21. Kg2 {[%clk 0:02:09]}  Rhf8 {[%clk 0:01:34]} 22. a4 {[%clk 0:02:06]}  g5 {[%clk 0:01:25]} 23. Rc4 {[%clk 0:02:01]}  h6 {[%clk 0:01:20]} 24. exf5 {[%clk 0:01:37]}  exf5 {[%clk 0:01:15]} 25. Rc5 {[%clk 0:01:35]}  Rde8 {[%clk 0:00:53]} 26. Rf3 {[%clk 0:01:35]}  Re6 {[%clk 0:00:47]} 27. h4 {[%clk 0:01:04]}  gxh4 {[%clk 0:00:40]} 28. Kf2 {[%clk 0:00:51]}  Rg6 {[%clk 0:00:20]} 29. Rc4 {[%clk 0:00:44]}  Rfg8 {[%clk 0:00:16]} 30. Rxf5 {[%clk 0:00:37]}  h3 {[%clk 0:00:14]} 31. Rh4 {[%clk 0:00:09]}  Rg2+ {[%clk 0:00:12]} 32. Kf3 {[%clk 0:00:10]}  h2 {[%clk 0:00:03]} 33. Rfh5 {[%clk 0:00:05]}  R8g3+ {[%clk 0:00:01]} 34. Kf4 {[%clk 0:00:03]}  Rg5 {[%clk 0:00:01]} 35. Rxh6 {[%clk 0:00:03]} 1-0


[Site "https://www.chess.com"]

[Event "Titled Tuesday Blitz September 21 2021"]
[White "Anuj Shrivatri"]
[Black "Qashashvili, Alexandre"]
[WhiteFideId "35070924"]
[BlackFideId "13600842"]
[WhiteElo "2038"]
[BlackElo "2316"]
[Result "1-0"]
[Round "01"]
[TimeControl "180+1"]
[Date "2021.09.21"]
[WhiteClock "0:00:53"]
[BlackClock "0:00:10"]

1. d4 {[%clk 0:03:00]}  d5 {[%clk 0:02:58]} 2. c4 {[%clk 0:03:01]}  c6 {[%clk 0:02:58]} 3. Nf3 {[%clk 0:03:01]}  Nf6 {[%clk 0:02:58]} 4. e3 {[%clk 0:03:01]}  Bf5 {[%clk 0:02:58]} 5. Nc3 {[%clk 0:03:01]}  e6 {[%clk 0:02:58]} 6. Nh4 {[%clk 0:03:02]}  Bg4 {[%clk 0:02:58]} 7. Qb3 {[%clk 0:03:01]}  b6 {[%clk 0:02:56]} 8. h3 {[%clk 0:02:59]}  Bh5 {[%clk 0:02:55]} 9. g4 {[%clk 0:03:00]}  Ne4 {[%clk 0:02:53]} 10. cxd5 {[%clk 0:02:54]}  Nxf2 {[%clk 0:02:35]} 11. Kxf2 {[%clk 0:02:37]}  Qxh4+ {[%clk 0:02:34]} 12. Kg2 {[%clk 0:02:37]}  Bd6 {[%clk 0:02:23]} 13. Ne4 {[%clk 0:02:32]}  Be7 {[%clk 0:02:03]} 14. d6 {[%clk 0:02:24]}  Bf6 {[%clk 0:01:48]} 15. Bd2 {[%clk 0:02:19]}  Bg6 {[%clk 0:01:46]} 16. Bd3 {[%clk 0:02:10]}  Bxe4+ {[%clk 0:01:38]} 17. Bxe4 {[%clk 0:02:09]}  h5 {[%clk 0:01:36]} 18. Bf3 {[%clk 0:01:50]}  O-O {[%clk 0:01:06]} 19. Be1 {[%clk 0:01:41]}  Qg5 {[%clk 0:01:06]} 20. h4 {[%clk 0:01:40]}  Qg6 {[%clk 0:01:06]} 21. g5 {[%clk 0:01:36]}  Bd8 {[%clk 0:01:05]} 22. Bg3 {[%clk 0:01:25]}  a5 {[%clk 0:00:58]} 23. Rac1 {[%clk 0:01:20]}  a4 {[%clk 0:00:57]} 24. Qd1 {[%clk 0:01:19]}  Ra5 {[%clk 0:00:48]} 25. Bxh5 {[%clk 0:01:18]}  Qe4+ {[%clk 0:00:42]} 26. Qf3 {[%clk 0:01:17]}  Qd3 {[%clk 0:00:33]} 27. Qe2 {[%clk 0:01:16]}  Qe4+ {[%clk 0:00:32]} 28. Bf3 {[%clk 0:01:16]}  Qg6 {[%clk 0:00:29]} 29. Qc2 {[%clk 0:01:12]}  Qxc2+ {[%clk 0:00:24]} 30. Rxc2 {[%clk 0:01:13]}  f6 {[%clk 0:00:24]} 31. g6 {[%clk 0:01:09]}  e5 {[%clk 0:00:19]} 32. h5 {[%clk 0:01:04]}  exd4 {[%clk 0:00:18]} 33. exd4 {[%clk 0:01:04]}  f5 {[%clk 0:00:16]} 34. Be5 {[%clk 0:01:01]}  f4 {[%clk 0:00:13]} 35. Bg4 {[%clk 0:00:58]}  c5 {[%clk 0:00:12]} 36. Be6+ {[%clk 0:00:58]}  Kh8 {[%clk 0:00:12]} 37. h6 {[%clk 0:00:58]}  Bf6 {[%clk 0:00:12]} 38. hxg7+ {[%clk 0:00:57]}  Kxg7 {[%clk 0:00:13]} 39. Kf3 {[%clk 0:00:57]}  Kxg6 {[%clk 0:00:09]} 40. Rg2+ {[%clk 0:00:56]}  Bg5 {[%clk 0:00:10]} 41. Rhg1 {[%clk 0:00:53]}  Nc6 {[%clk 0:00:10]} 42. Rxg5+ {[%clk 0:00:53]}  Kh6 {[%clk 0:00:10]} 43. Bg7+ {[%clk 0:00:53]}  Kh7 {[%clk 0:00:10]} 44. Rh1# {[%clk 0:00:53]} 1-0


[Site "https://www.chess.com"]

[Event "Titled Tuesday Blitz September 21 2021"]
[White "Arabidze, Meri"]
[Black "Mikhnenko, Alexander"]
[WhiteFideId "13604040"]
[BlackFideId "34143014"]
[WhiteElo "2432"]
[BlackElo "2135"]
[Result "1-0"]
[Round "01"]
[TimeControl "180+1"]
[Date "2021.09.21"]
[WhiteClock "0:01:35"]
[BlackClock "0:01:32"]

1. Nf3 {[%clk 0:03:00]}  Nf6 {[%clk 0:02:55]} 2. b3 {[%clk 0:03:01]}  d5 {[%clk 0:02:53]} 3. Bb2 {[%clk 0:03:02]}  c5 {[%clk 0:02:53]} 4. e3 {[%clk 0:03:02]}  Nc6 {[%clk 0:02:53]} 5. Bb5 {[%clk 0:03:02]}  Bg4 {[%clk 0:02:53]} 6. h3 {[%clk 0:03:01]}  Bh5 {[%clk 0:02:53]} 7. g4 {[%clk 0:03:01]}  Bg6 {[%clk 0:02:52]} 8. Ne5 {[%clk 0:03:01]}  Rc8 {[%clk 0:02:51]} 9. f4 {[%clk 0:02:56]}  h5 {[%clk 0:02:37]} 10. Nxg6 {[%clk 0:02:53]}  fxg6 {[%clk 0:02:38]} 11. g5 {[%clk 0:02:53]}  Ne4 {[%clk 0:02:36]} 12. Qf3 {[%clk 0:02:50]}  Qd7 {[%clk 0:02:33]} 13. Nc3 {[%clk 0:02:40]}  Nxc3 {[%clk 0:02:30]} 14. Bxc3 {[%clk 0:02:40]}  e6 {[%clk 0:02:31]} 15. O-O-O {[%clk 0:02:36]}  a6 {[%clk 0:02:30]} 16. Bd3 {[%clk 0:02:34]}  Qf7 {[%clk 0:02:22]} 17. Kb1 {[%clk 0:02:24]}  c4 {[%clk 0:02:21]} 18. bxc4 {[%clk 0:02:19]}  dxc4 {[%clk 0:02:16]} 19. Bxc4 {[%clk 0:02:19]}  Bb4 {[%clk 0:02:13]} 20. Bb2 {[%clk 0:02:04]}  b5 {[%clk 0:02:02]} 21. Bb3 {[%clk 0:02:02]}  Na5 {[%clk 0:01:56]} 22. e4 {[%clk 0:01:57]}  Nc4 {[%clk 0:01:54]} 23. Bxc4 {[%clk 0:01:50]}  bxc4 {[%clk 0:01:55]} 24. f5 {[%clk 0:01:47]}  gxf5 {[%clk 0:01:51]} 25. exf5 {[%clk 0:01:48]}  Qxf5 {[%clk 0:01:51]} 26. Qb7 {[%clk 0:01:38]}  e5 {[%clk 0:01:32]} 27. Qxb4 {[%clk 0:01:35]} 1-0


[Site "https://www.chess.com"]

[Event "Titled Tuesday Blitz September 21 2021"]
[White "Aradhya, Garg"]
[Black "Tsyhanchuk, Stanislav"]
[WhiteFideId "25006746"]
[BlackFideId "13505130"]
[WhiteElo "2146"]
[BlackElo "2078"]
[Result "1-0"]
[Round "01"]
[TimeControl "180+1"]
[Date "2021.09.21"]
[WhiteClock "0:00:16"]
[BlackClock "0:00:08"]

1. d4 {[%clk 0:02:34]}  d5 {[%clk 0:02:58]} 2. c4 {[%clk 0:02:33]}  c6 {[%clk 0:02:58]} 3. Nf3 {[%clk 0:02:32]}  Nf6 {[%clk 0:02:58]} 4. e3 {[%clk 0:02:32]}  e6 {[%clk 0:02:57]} 5. Nc3 {[%clk 0:02:31]}  Nbd7 {[%clk 0:02:57]} 6. Be2 {[%clk 0:02:28]}  dxc4 {[%clk 0:02:53]} 7. a4 {[%clk 0:02:27]}  Bd6 {[%clk 0:02:50]} 8. O-O {[%clk 0:02:26]}  O-O {[%clk 0:02:50]} 9. Nd2 {[%clk 0:02:26]}  Qc7 {[%clk 0:02:50]} 10. h3 {[%clk 0:02:02]}  b6 {[%clk 0:02:45]} 11. Nxc4 {[%clk 0:02:01]}  Bb4 {[%clk 0:02:45]} 12. e4 {[%clk 0:01:41]}  Bxc3 {[%clk 0:02:42]} 13. bxc3 {[%clk 0:01:41]}  Nxe4 {[%clk 0:02:40]} 14. Qd3 {[%clk 0:01:41]}  Nef6 {[%clk 0:02:31]} 15. Qf3 {[%clk 0:01:21]}  Ba6 {[%clk 0:02:26]} 16. Bf4 {[%clk 0:01:20]}  Qd8 {[%clk 0:02:02]} 17. Bd6 {[%clk 0:01:12]}  Re8 {[%clk 0:01:59]} 18. Ne5 {[%clk 0:01:12]}  Bxe2 {[%clk 0:01:57]} 19. Qxe2 {[%clk 0:01:12]}  Nxe5 {[%clk 0:01:57]} 20. dxe5 {[%clk 0:01:12]}  Nd5 {[%clk 0:01:54]} 21. c4 {[%clk 0:01:12]}  Ne7 {[%clk 0:01:53]} 22. Rfd1 {[%clk 0:01:06]}  Nf5 {[%clk 0:01:51]} 23. Qe4 {[%clk 0:01:06]}  Qc8 {[%clk 0:01:44]} 24. c5 {[%clk 0:00:55]}  Ne7 {[%clk 0:01:33]} 25. Bxe7 {[%clk 0:00:54]}  Rxe7 {[%clk 0:01:32]} 26. Rd6 {[%clk 0:00:54]}  bxc5 {[%clk 0:01:22]} 27. Rxc6 {[%clk 0:00:49]}  Qe8 {[%clk 0:01:00]} 28. Rxc5 {[%clk 0:00:48]}  Rc8 {[%clk 0:00:58]} 29. Rac1 {[%clk 0:00:47]}  Rxc5 {[%clk 0:00:45]} 30. Rxc5 {[%clk 0:00:46]}  g6 {[%clk 0:00:38]} 31. h4 {[%clk 0:00:44]}  h5 {[%clk 0:00:37]} 32. Qc4 {[%clk 0:00:25]}  Rd7 {[%clk 0:00:27]} 33. Rc8 {[%clk 0:00:22]}  Rd8 {[%clk 0:00:27]} 34. Rc7 {[%clk 0:00:22]}  a5 {[%clk 0:00:15]} 35. g3 {[%clk 0:00:17]}  Rb8 {[%clk 0:00:14]} 36. Kg2 {[%clk 0:00:17]}  Kg7 {[%clk 0:00:14]} 37. Qf4 {[%clk 0:00:16]}  Rb4 {[%clk 0:00:12]} 38. Qf6+ {[%clk 0:00:16]}  Kg8 {[%clk 0:00:12]} 39. Re7 {[%clk 0:00:16]}  Qa8+ {[%clk 0:00:11]} 40. Kh2 {[%clk 0:00:16]}  Qf8 {[%clk 0:00:09]} 41. Rd7 {[%clk 0:00:16]}  Rxa4 {[%clk 0:00:08]} 42. Rd8 {[%clk 0:00:16]} 1-0


[Site "https://www.chess.com"]

[Event "Titled Tuesday Blitz September 21 2021"]
[White "Babiy, Olga"]
[Black "Zhigalko, Sergei"]
[WhiteFideId "14117258"]
[BlackFideId "13502956"]
[WhiteElo "2253"]
[BlackElo "2662"]
[Result "0-1"]
[Round "01"]
[TimeControl "180+1"]
[Date "2021.09.21"]
[WhiteClock "0:00:02"]
[BlackClock "0:00:06"]

1. d4 {[%clk 0:02:22]}  Nf6 {[%clk 0:02:55]} 2. Nf3 {[%clk 0:02:21]}  e6 {[%clk 0:02:54]} 3. Bf4 {[%clk 0:02:20]}  b6 {[%clk 0:02:53]} 4. e3 {[%clk 0:02:18]}  Bb7 {[%clk 0:02:53]} 5. Nbd2 {[%clk 0:02:17]}  Nh5 {[%clk 0:02:53]} 6. Bg5 {[%clk 0:02:15]}  Be7 {[%clk 0:02:53]} 7. Bxe7 {[%clk 0:02:12]}  Qxe7 {[%clk 0:02:54]} 8. Bd3 {[%clk 0:02:12]}  O-O {[%clk 0:02:54]} 9. Qe2 {[%clk 0:01:55]}  f5 {[%clk 0:02:51]} 10. O-O-O {[%clk 0:01:44]}  c5 {[%clk 0:02:12]} 11. Rhg1 {[%clk 0:01:32]}  Nf6 {[%clk 0:02:02]} 12. h3 {[%clk 0:01:27]}  Nc6 {[%clk 0:01:58]} 13. c3 {[%clk 0:01:22]}  cxd4 {[%clk 0:01:54]} 14. exd4 {[%clk 0:01:22]}  Nd5 {[%clk 0:01:54]} 15. g3 {[%clk 0:01:18]}  a6 {[%clk 0:01:32]} 16. Nc4 {[%clk 0:01:15]}  Rac8 {[%clk 0:01:26]} 17. Ne3 {[%clk 0:00:55]}  Ncb4 {[%clk 0:01:16]} 18. Bb1 {[%clk 0:00:47]}  Rxc3+ {[%clk 0:00:56]} 19. bxc3 {[%clk 0:00:47]}  Nxc3 {[%clk 0:00:57]} 20. Qd2 {[%clk 0:00:26]}  Rc8 {[%clk 0:00:53]} 21. Kb2 {[%clk 0:00:25]}  Bxf3 {[%clk 0:00:25]} 22. Rc1 {[%clk 0:00:24]}  Na4+ {[%clk 0:00:26]} 23. Ka1 {[%clk 0:00:24]}  Rc6 {[%clk 0:00:17]} 24. Rxc6 {[%clk 0:00:24]}  Nxc6 {[%clk 0:00:17]} 25. Rc1 {[%clk 0:00:21]}  Qa3 {[%clk 0:00:13]} 26. d5 {[%clk 0:00:13]}  exd5 {[%clk 0:00:04]} 27. Bxf5 {[%clk 0:00:13]}  Na5 {[%clk 0:00:02]} 28. Rb1 {[%clk 0:00:10]}  Kf7 {[%clk 0:00:02]} 29. Nxd5 {[%clk 0:00:09]}  Qc5 {[%clk 0:00:02]} 30. Ne3 {[%clk 0:00:07]}  Qe5+ {[%clk 0:00:02]} 31. Rb2 {[%clk 0:00:05]}  Nxb2 {[%clk 0:00:03]} 32. Qxb2 {[%clk 0:00:06]}  Qxb2+ {[%clk 0:00:02]} 33. Kxb2 {[%clk 0:00:07]}  d6 {[%clk 0:00:03]} 34. Bd3 {[%clk 0:00:06]}  b5 {[%clk 0:00:03]} 35. Kc3 {[%clk 0:00:06]}  Nc6 {[%clk 0:00:03]} 36. Nc2 {[%clk 0:00:03]}  Ne5 {[%clk 0:00:04]} 37. Bf5 {[%clk 0:00:03]}  g6 {[%clk 0:00:04]} 38. Bc8 {[%clk 0:00:04]}  a5 {[%clk 0:00:04]} 39. Nd4 {[%clk 0:00:03]}  b4+ {[%clk 0:00:04]} 40. Kd2 {[%clk 0:00:03]}  Bd5 {[%clk 0:00:05]} 41. Nb5 {[%clk 0:00:02]}  Ke7 {[%clk 0:00:04]} 42. Nd4 {[%clk 0:00:03]}  Bxa2 {[%clk 0:00:04]} 43. Ba6 {[%clk 0:00:03]}  Bc4 {[%clk 0:00:04]} 44. Bb7 {[%clk 0:00:02]}  Kd7 {[%clk 0:00:04]} 45. f4 {[%clk 0:00:02]}  Nf7 {[%clk 0:00:02]} 46. Bc6+ {[%clk 0:00:02]}  Kc7 {[%clk 0:00:03]} 47. Ba4 {[%clk 0:00:03]}  Nd8 {[%clk 0:00:03]} 48. Ke3 {[%clk 0:00:03]}  Be6 {[%clk 0:00:03]} 49. g4 {[%clk 0:00:02]}  Bd7 {[%clk 0:00:04]} 50. Bc2 {[%clk 0:00:02]}  Ne6 {[%clk 0:00:04]} 51. Nf3 {[%clk 0:00:01]}  Nc5 {[%clk 0:00:04]} 52. f5 {[%clk 0:00:01]}  gxf5 {[%clk 0:00:05]} 53. gxf5 {[%clk 0:00:02]}  b3 {[%clk 0:00:05]} 54. Bb1 {[%clk 0:00:01]}  a4 {[%clk 0:00:05]} 55. Nd4 {[%clk 0:00:02]}  a3 {[%clk 0:00:05]} 56. Nxb3 {[%clk 0:00:01]}  Nxb3 {[%clk 0:00:06]} 57. Ba2 {[%clk 0:00:02]}  Nc1 {[%clk 0:00:06]} 0-1


[Site "https://www.chess.com"]

[Event "Titled Tuesday Blitz September 21 2021"]
[White "Begunov, Konstantin"]
[Black "Grandelius, Nils"]
[WhiteFideId "4118510"]
[BlackFideId "1710400"]
[WhiteElo "2262"]
[BlackElo "2651"]
[Result "0-1"]
[Round "01"]
[TimeControl "180+1"]
[Date "2021.09.21"]
[WhiteClock "0:00:01"]
[BlackClock "0:00:41"]

1. d4 {[%clk 0:03:00]}  Nf6 {[%clk 0:02:55]} 2. c4 {[%clk 0:03:00]}  e6 {[%clk 0:02:54]} 3. Nf3 {[%clk 0:02:59]}  c5 {[%clk 0:02:45]} 4. Nc3 {[%clk 0:02:58]}  d5 {[%clk 0:02:41]} 5. cxd5 {[%clk 0:02:57]}  exd5 {[%clk 0:02:39]} 6. g3 {[%clk 0:02:58]}  Nc6 {[%clk 0:02:38]} 7. Bg2 {[%clk 0:02:58]}  cxd4 {[%clk 0:02:39]} 8. Nxd4 {[%clk 0:02:57]}  Bc5 {[%clk 0:02:40]} 9. Nxc6 {[%clk 0:02:48]}  bxc6 {[%clk 0:02:41]} 10. O-O {[%clk 0:02:47]}  O-O {[%clk 0:02:41]} 11. Bf4 {[%clk 0:02:45]}  Re8 {[%clk 0:02:39]} 12. Rc1 {[%clk 0:02:44]}  Bb6 {[%clk 0:02:37]} 13. Na4 {[%clk 0:02:40]}  Bg4 {[%clk 0:02:35]} 14. Re1 {[%clk 0:02:36]}  Qd7 {[%clk 0:02:31]} 15. Nc5 {[%clk 0:02:22]}  Bxc5 {[%clk 0:02:17]} 16. Rxc5 {[%clk 0:02:23]}  Rac8 {[%clk 0:02:15]} 17. Be3 {[%clk 0:01:34]}  Bh3 {[%clk 0:02:08]} 18. Bh1 {[%clk 0:01:20]}  h5 {[%clk 0:01:50]} 19. Qd4 {[%clk 0:01:20]}  Ne4 {[%clk 0:01:45]} 20. Rc2 {[%clk 0:01:06]}  c5 {[%clk 0:01:41]} 21. Qd1 {[%clk 0:00:58]}  d4 {[%clk 0:01:38]} 22. Bf4 {[%clk 0:00:46]}  Nf6 {[%clk 0:01:15]} 23. Qc1 {[%clk 0:00:36]}  Nd5 {[%clk 0:01:06]} 24. Bd2 {[%clk 0:00:25]}  Qd6 {[%clk 0:01:04]} 25. b3 {[%clk 0:00:19]}  Bf5 {[%clk 0:01:02]} 26. Rc4 {[%clk 0:00:18]}  Nb6 {[%clk 0:01:02]} 27. Bf4 {[%clk 0:00:16]}  Qe7 {[%clk 0:01:02]} 28. Rc2 {[%clk 0:00:09]}  Bxc2 {[%clk 0:01:00]} 29. Qxc2 {[%clk 0:00:10]}  c4 {[%clk 0:00:57]} 30. bxc4 {[%clk 0:00:09]}  Rxc4 {[%clk 0:00:58]} 31. Qd3 {[%clk 0:00:09]}  Rec8 {[%clk 0:00:52]} 32. Bf3 {[%clk 0:00:08]}  g6 {[%clk 0:00:52]} 33. Rd1 {[%clk 0:00:08]}  Qe6 {[%clk 0:00:51]} 34. Qb3 {[%clk 0:00:07]}  Nd5 {[%clk 0:00:49]} 35. Bd2 {[%clk 0:00:04]}  Nc3 {[%clk 0:00:49]} 36. Re1 {[%clk 0:00:02]}  Ne4 {[%clk 0:00:47]} 37. Bf4 {[%clk 0:00:01]}  g5 {[%clk 0:00:41]} 0-1


[Site "https://www.chess.com"]

[Event "Titled Tuesday Blitz September 21 2021"]
[White "Corrales Jimenez, Fidel"]
[Black "Pourkashiyan, Atousa"]
[WhiteFideId "3506690"]
[BlackFideId "12502014"]
[WhiteElo "2555"]
[BlackElo "2285"]
[Result "1/2-1/2"]
[Round "01"]
[TimeControl "180+1"]
[Date "2021.09.21"]
[WhiteClock "0:00:27"]
[BlackClock "0:00:01"]

1. e4 {[%clk 0:02:58]}  e5 {[%clk 0:02:51]} 2. Nf3 {[%clk 0:02:57]}  Nc6 {[%clk 0:02:50]} 3. d4 {[%clk 0:02:57]}  exd4 {[%clk 0:02:49]} 4. Nxd4 {[%clk 0:02:58]}  d6 {[%clk 0:02:35]} 5. c4 {[%clk 0:02:56]}  Nf6 {[%clk 0:02:34]} 6. Nc3 {[%clk 0:02:56]}  Be7 {[%clk 0:02:35]} 7. Be2 {[%clk 0:02:54]}  O-O {[%clk 0:02:35]} 8. O-O {[%clk 0:02:55]}  Re8 {[%clk 0:02:35]} 9. Re1 {[%clk 0:02:55]}  Bf8 {[%clk 0:02:35]} 10. f3 {[%clk 0:02:55]}  h6 {[%clk 0:02:19]} 11. Be3 {[%clk 0:02:53]}  Nxd4 {[%clk 0:02:13]} 12. Bxd4 {[%clk 0:02:53]}  Be6 {[%clk 0:02:13]} 13. Qd2 {[%clk 0:02:52]}  Nd7 {[%clk 0:02:12]} 14. b4 {[%clk 0:02:50]}  a5 {[%clk 0:02:08]} 15. a3 {[%clk 0:02:46]}  axb4 {[%clk 0:02:05]} 16. axb4 {[%clk 0:02:46]}  c5 {[%clk 0:02:06]} 17. bxc5 {[%clk 0:02:44]}  Nxc5 {[%clk 0:01:57]} 18. Rxa8 {[%clk 0:02:43]}  Qxa8 {[%clk 0:01:57]} 19. Bf2 {[%clk 0:02:44]}  Qa5 {[%clk 0:01:48]} 20. Qc2 {[%clk 0:02:43]}  Ra8 {[%clk 0:01:46]} 21. Rb1 {[%clk 0:02:42]}  g6 {[%clk 0:01:37]} 22. Nb5 {[%clk 0:02:38]}  Qa4 {[%clk 0:01:33]} 23. Qxa4 {[%clk 0:02:38]}  Rxa4 {[%clk 0:01:32]} 24. Nc3 {[%clk 0:02:03]}  Ra3 {[%clk 0:01:32]} 25. Nd5 {[%clk 0:02:01]}  Rb3 {[%clk 0:01:22]} 26. Rxb3 {[%clk 0:01:53]}  Nxb3 {[%clk 0:01:23]} 27. Nf6+ {[%clk 0:01:54]}  Kh8 {[%clk 0:01:15]} 28. Ne8 {[%clk 0:01:52]}  Na5 {[%clk 0:00:54]} 29. Bd4+ {[%clk 0:01:50]}  Kg8 {[%clk 0:00:54]} 30. Nf6+ {[%clk 0:01:08]}  Kh8 {[%clk 0:00:53]} 31. Nd5+ {[%clk 0:01:09]}  Kg8 {[%clk 0:00:52]} 32. Bb6 {[%clk 0:01:09]}  Nc6 {[%clk 0:00:43]} 33. Kf2 {[%clk 0:01:08]}  Bg7 {[%clk 0:00:42]} 34. Ke3 {[%clk 0:01:08]}  g5 {[%clk 0:00:40]} 35. g3 {[%clk 0:01:07]}  Bb2 {[%clk 0:00:39]} 36. f4 {[%clk 0:01:03]}  Bc1+ {[%clk 0:00:38]} 37. Kf3 {[%clk 0:01:03]}  gxf4 {[%clk 0:00:28]} 38. gxf4 {[%clk 0:01:03]}  f5 {[%clk 0:00:25]} 39. Bd3 {[%clk 0:00:50]}  fxe4+ {[%clk 0:00:24]} 40. Bxe4 {[%clk 0:00:51]}  Bf7 {[%clk 0:00:22]} 41. Bc7 {[%clk 0:00:13]}  Ba3 {[%clk 0:00:21]} 42. Ne3 {[%clk 0:00:08]}  Nd4+ {[%clk 0:00:18]} 43. Kg4 {[%clk 0:00:08]}  h5+ {[%clk 0:00:16]} 44. Kg5 {[%clk 0:00:06]}  Ne6+ {[%clk 0:00:16]} 45. Kf6 {[%clk 0:00:06]}  Nxc7 {[%clk 0:00:16]} 46. Nf5 {[%clk 0:00:06]}  Bxc4 {[%clk 0:00:15]} 47. Nxd6 {[%clk 0:00:05]}  Bxd6 {[%clk 0:00:14]} 48. Bxb7 {[%clk 0:00:05]}  Ne8+ {[%clk 0:00:13]} 49. Kg6 {[%clk 0:00:05]}  h4 {[%clk 0:00:12]} 50. Kg5 {[%clk 0:00:05]}  h3 {[%clk 0:00:12]} 51. Kg4 {[%clk 0:00:05]}  Bf1 {[%clk 0:00:12]} 52. Bc8 {[%clk 0:00:04]}  Kg7 {[%clk 0:00:12]} 53. Kh4 {[%clk 0:00:04]}  Nf6 {[%clk 0:00:12]} 54. Bxh3 {[%clk 0:00:05]}  Bxh3 {[%clk 0:00:11]} 55. Kxh3 {[%clk 0:00:06]}  Bxf4 {[%clk 0:00:11]} 56. Kh4 {[%clk 0:00:06]}  Bh6 {[%clk 0:00:11]} 57. h3 {[%clk 0:00:07]}  Kg6 {[%clk 0:00:11]} 58. Kg3 {[%clk 0:00:08]}  Kh5 {[%clk 0:00:11]} 59. h4 {[%clk 0:00:09]}  Ng4 {[%clk 0:00:10]} 60. Kf3 {[%clk 0:00:10]}  Kxh4 {[%clk 0:00:10]} 61. Ke4 {[%clk 0:00:10]}  Bg7 {[%clk 0:00:10]} 62. Kf5 {[%clk 0:00:11]}  Kh5 {[%clk 0:00:09]} 63. Ke4 {[%clk 0:00:12]}  Kg5 {[%clk 0:00:09]} 64. Kd5 {[%clk 0:00:13]}  Kf5 {[%clk 0:00:09]} 65. Kc4 {[%clk 0:00:13]}  Ke4 {[%clk 0:00:09]} 66. Kc5 {[%clk 0:00:14]}  Be5 {[%clk 0:00:08]} 67. Kc6 {[%clk 0:00:14]}  Nf6 {[%clk 0:00:08]} 68. Kb7 {[%clk 0:00:15]}  Kd5 {[%clk 0:00:08]} 69. Kb6 {[%clk 0:00:16]}  Bd6 {[%clk 0:00:08]} 70. Kb5 {[%clk 0:00:17]}  Nd7 {[%clk 0:00:07]} 71. Ka6 {[%clk 0:00:17]}  Kc6 {[%clk 0:00:05]} 72. Ka7 {[%clk 0:00:17]}  Nc5 {[%clk 0:00:04]} 73. Ka8 {[%clk 0:00:18]}  Na4 {[%clk 0:00:03]} 74. Ka7 {[%clk 0:00:19]}  Nc5 {[%clk 0:00:03]} 75. Ka8 {[%clk 0:00:20]}  Kb5 {[%clk 0:00:03]} 76. Ka7 {[%clk 0:00:21]}  Be5 {[%clk 0:00:02]} 77. Ka8 {[%clk 0:00:22]}  Bd4 {[%clk 0:00:03]} 78. Ka7 {[%clk 0:00:23]}  Kc6 {[%clk 0:00:03]} 79. Ka8 {[%clk 0:00:24]}  Kb6 {[%clk 0:00:03]} 80. Kb8 {[%clk 0:00:24]}  Be5+ {[%clk 0:00:03]} 81. Ka8 {[%clk 0:00:25]}  Bd4 {[%clk 0:00:03]} 82. Kb8 {[%clk 0:00:26]}  Na6+ {[%clk 0:00:02]} 83. Ka8 {[%clk 0:00:27]}  Nc5 {[%clk 0:00:01]} 1/2-1/2


[Site "https://www.chess.com"]